bitfinex-derivatives/quotes_BTCF0:USTF0_20251125
["timestamp","ask_amount","ask_price","bid_price","bid_amount"]
[1764088247975,0.44739,87321.0,87320.0,1.0550602]
[1764088248175,0.47045148,87321.0,87320.0,0.3608]
[1764088248572,0.44739,87318.0,87317.0,0.00017184]
[1764088248773,0.83125148,87318.0,87317.0,0.00017184]
[1764088249484,0.80819,87318.0,87317.0,0.00017184]
[1764088249677,0.44739,87307.0,87306.0,0.04112858]
[1764088249874,0.44739,87302.0,87301.0,0.04112858]
[1764088250073,0.44739,87298.0,87297.0,0.04112858]
[1764088250275,0.57911,87307.0,87306.0,0.44778]
[1764088250481,0.80819,87307.0,87306.0,0.22262]
[1764088250680,0.44739,87301.0,87300.0,0.57796]
[1764088251579,0.4588511,87301.0,87300.0,0.57796]
[1764088251882,0.4588511,87301.0,87300.0,0.22262]
[1764088252083,0.44739,87299.0,87298.0,0.06175345]
[1764088252280,0.44739,87299.0,87298.0,0.00017184]
[1764088252678,0.44739,87299.0,87298.0,0.22279184]
[1764088252881,0.44739,87299.0,87298.0,0.44795184]
[1764088253279,0.44739,87299.0,87298.0,0.00017184]
[1764088253487,0.80819,87299.0,87298.0,0.00017184]
[1764088255288,0.80819,87299.0,87298.0,0.44795184]
[1764088255490,0.3608,87299.0,87298.0,0.48908798]
[1764088255785,0.0114607,87304.0,87299.0,0.44778]
[1764088255989,0.44739,87301.0,87300.0,0.61909023]
[1764088256189,0.44739,87301.0,87300.0,0.57796]
[1764088257191,0.96907,87301.0,87300.0,0.57796]
[1764088258190,0.94154898,87301.0,87300.0,0.57796]
[1764088258387,0.73999,87301.0,87300.0,0.57796]
[1764088258586,0.73999,87301.0,87300.0,0.63954161]
[1764088258794,0.73999,87301.0,87300.0,0.57796]
[1764088259693,0.49885124,87315.0,87314.0,0.50543]
[1764088259998,0.49885124,87315.0,87314.0,0.54656955]
[1764088260196,0.49885124,87315.0,87314.0,0.04113955]
[1764088260894,1.23884124,87315.0,87314.0,0.04113955]
[1764088261091,0.48722,87313.0,87312.0,0.04113955]
[1764088261297,0.4986797,87312.0,87311.0,0.04113955]
[1764088261483,0.4986802,87308.0,87307.0,0.04113955]
[1764088261684,0.4986806,87305.0,87303.0,0.04113955]
[1764088261886,0.4986814,87299.0,87298.0,1.84e-06]
[1764088262089,0.4986814,87299.0,87276.0,0.3608]
[1764088262090,0.48722,87285.0,87283.0,0.06170932]
[1764088262395,0.0114637,87281.0,87280.0,0.06170932]
[1764088262689,0.48722,87281.0,87280.0,0.06170932]
[1764088263289,0.48722,87281.0,87276.0,0.3608]
[1764088263290,0.4986838,87281.0,87279.0,0.06170932]
[1764088263486,0.48722,87280.0,87279.0,0.06170932]
[1764088263685,0.4986848,87273.0,87272.0,0.06188116]
[1764088263890,0.4986848,87273.0,87272.0,0.00017184]
[1764088264087,0.4986857,87266.0,87265.0,0.06170932]
[1764088264284,0.48722,87262.0,87255.0,0.06170932]
[1764088264490,0.48722,87249.0,87248.0,0.15371377]
[1764088264692,0.48722,87249.0,87248.0,0.50543]
[1764088264894,0.48722,87247.0,87246.0,0.06170932]
[1764088265288,0.48722,87247.0,87246.0,0.50543]
[1764088265494,0.48730663,87247.0,87246.0,0.5168983]
[1764088265893,8.663e-05,87247.0,87246.0,0.5168983]
[1764088266103,0.00017184,87255.0,87254.0,0.50543]
[1764088266301,0.48739184,87255.0,87254.0,0.50543]
[1764088266598,0.48722,87253.0,87243.0,0.18156]
[1764088266788,0.48722,87253.0,87252.0,0.65523]
[1764088266994,0.24564,87253.0,87252.0,0.65523]
[1764088267193,0.48722,87253.0,87252.0,0.65523]
[1764088267500,0.24564,87253.0,87252.0,0.65523]
[1764088268197,0.74016184,87255.0,87252.0,0.1498]
[1764088268403,0.00017184,87255.0,87254.0,0.50543]
[1764088268594,0.48739184,87255.0,87254.0,0.50543]
[1764088268997,0.00017184,87255.0,87254.0,0.50543]
[1764088269196,0.00017184,87255.0,87254.0,0.68699]
[1764088269398,0.48739184,87255.0,87249.0,0.3608]
[1764088269603,0.48722,87250.0,87249.0,0.3608]
[1764088269801,0.00017184,87255.0,87242.0,0.18156]
[1764088270005,0.48739184,87255.0,87242.0,0.18156]
[1764088270205,0.48739184,87255.0,87243.0,0.0980706]
[1764088270597,0.48739184,87255.0,87243.0,0.1095392]
[1764088270802,0.48739184,87255.0,87254.0,0.2562]
[1764088271106,0.48739184,87255.0,87254.0,0.50543]
[1764088271107,0.00017184,87255.0,87254.0,0.50543]
[1764088271892,0.00017184,87255.0,87254.0,0.68699]
[1764088273101,0.49092184,87255.0,87254.0,0.68699]
[1764088273900,0.00017184,87255.0,87254.0,0.68699]
[1764088274604,0.24736184,87255.0,87254.0,0.6984573]
[1764088275218,0.00017184,87255.0,87254.0,0.6984573]
[1764088275415,0.3608,87265.0,87264.0,0.011466]
[1764088275622,0.3608,87265.0,87264.0,0.546556]
[1764088275821,0.3608,87274.0,87273.0,0.5465548]
[1764088276027,0.85155,87274.0,87273.0,0.53509]
[1764088276420,1.10079,87274.0,87273.0,0.5465548]
[1764088276620,1.10079,87274.0,87273.0,0.53509]
[1764088276820,1.23174,87274.0,87273.0,0.53509]
[1764088277423,1.23274,87274.0,87273.0,0.53509]
[1764088277729,0.74199,87274.0,87273.0,0.53509]
[1764088277919,1.23274,87274.0,87273.0,0.53509]
[1764088278118,0.49075,87270.0,87269.0,0.5465553]
[1764088278621,0.24719,87270.0,87269.0,0.5465553]
[1764088278824,0.002,87274.0,87273.0,0.53509]
[1764088279213,0.001,87274.0,87273.0,0.53509]
[1764088280120,0.001,87274.0,87273.0,0.53609]
[1764088280322,0.00017184,87282.0,87273.0,0.53609]
[1764088280926,0.49075,87274.0,87273.0,0.53609]
[1764088281523,0.73999,87278.0,87277.0,0.53509]
[1764088281730,0.98718,87278.0,87277.0,0.53509]
[1764088282823,1.23074,87278.0,87277.0,0.53509]
[1764088283230,1.23074,87278.0,87277.0,0.53609]
[1764088284019,1.23074,87278.0,87277.0,0.53509]
[1764088285323,0.98718,87278.0,87277.0,0.53509]
[1764088285525,0.73999,87278.0,87277.0,0.53509]
[1764088286024,0.49075,87274.0,87273.0,0.0980706]
[1764088286722,0.24719,87274.0,87273.0,0.6331606]
[1764088286927,0.49075,87274.0,87273.0,0.6331606]
[1764088287132,0.49075,87274.0,87273.0,0.6446254]
[1764088287424,0.49075,87274.0,87273.0,0.6331606]
[1764088290033,0.49075,87274.0,87273.0,0.0980706]
[1764088290328,0.49075,87248.0,87246.0,0.06170932]
[1764088290524,0.13751,87270.0,87241.0,0.15944]
[1764088290525,0.24719,87244.0,87243.0,0.24314932]
[1764088290727,0.85155,87257.0,87250.0,0.15944]
[1764088290929,0.49075,87251.0,87250.0,0.69453]
[1764088291323,0.49075,87251.0,87250.0,0.26784]
[1764088291524,0.49075,87248.0,87247.0,0.19500035]
[1764088291726,0.49075,87246.0,87245.0,0.59679932]
[1764088291924,0.0114678,87250.0,87245.0,0.59679932]
[1764088292127,0.3608,87257.0,87245.0,0.59679932]
[1764088292128,0.5022174,87254.0,87253.0,0.53509]
[1764088292327,0.0114675,87252.0,87245.0,0.06170932]
[1764088292522,0.3608,87257.0,87245.0,0.06170932]
[1764088292523,0.49075,87246.0,87245.0,0.59679932]
[1764088293127,0.49075,87246.0,87245.0,0.59779932]
[1764088293630,0.49075,87246.0,87245.0,0.06270932]
[1764088293835,0.49075,87243.0,87242.0,0.00017184]
[1764088294136,0.5012187,87243.0,87242.0,0.00017184]
[1764088295136,1.2412087,87243.0,87242.0,0.00017184]
[1764088295339,1.2412087,87243.0,87242.0,0.00117184]
[1764088297636,1.22974,87243.0,87242.0,0.53626184]
[1764088298133,1.22974,87243.0,87242.0,0.26901184]
[1764088299336,1.59054,87243.0,87242.0,0.00117184]
[1764088299546,0.5022208,87227.0,87226.0,0.04110179]
[1764088299841,0.5022208,87227.0,87225.0,0.04110179]
[1764088300037,0.49075,87225.0,87224.0,0.57619179]
[1764088300338,0.3608,87231.0,87223.0,0.71653]
[1764088300339,0.49075,87224.0,87223.0,0.71653]
[1764088300537,0.49075,87224.0,87223.0,0.18144]
[1764088300926,0.49075,87221.0,87220.0,0.0410835]
[1764088301132,0.45424,87220.0,87218.0,0.0410835]
[1764088301339,0.20705,87217.0,87216.0,0.49722195]
[1764088301528,0.0114715,87222.0,87216.0,0.49722195]
[1764088301726,0.4141,87222.0,87221.0,0.49705]
[1764088302143,0.3608,87231.0,87222.0,0.0114715]
[1764088302144,0.3722704,87231.0,87222.0,0.0114715]
[1764088302440,0.3722704,87231.0,87220.0,0.15271]
[1764088302441,0.3608,87231.0,87230.0,0.64976]
[1764088302636,0.00017195,87233.0,87232.0,0.49705]
[1764088302828,0.00017195,87233.0,87232.0,0.67849]
[1764088303032,1.95e-06,87233.0,87232.0,0.67849]
[1764088304145,1.95e-06,87233.0,87232.0,0.7195735]
[1764088304441,1.95e-06,87233.0,87232.0,0.67849]
[1764088305136,0.41444195,87233.0,87232.0,0.67849]
[1764088306538,1.95e-06,87233.0,87232.0,0.67849]
[1764088306737,1.95e-06,87233.0,87232.0,0.18144]
[1764088307145,0.0114698,87235.0,87234.0,0.49705]
[1764088307330,0.41444,87233.0,87232.0,0.18144]
[1764088307729,0.0114696,87237.0,87234.0,0.49705]
[1764088307940,0.2186896,87237.0,87236.0,0.49705]
[1764088308139,0.4259096,87237.0,87236.0,0.49705]
[1764088308340,0.41444,87236.0,87235.0,0.3608]
[1764088309140,0.0114707,87228.0,87227.0,0.3608]
[1764088309340,0.4259107,87228.0,87227.0,0.3608]
[1764088310037,0.4259107,87228.0,87219.0,0.3608]
[1764088310038,0.41444,87220.0,87219.0,0.3608]
[1764088310538,0.41444,87220.0,87219.0,0.76941]
[1764088310842,0.20722,87221.0,87220.0,0.24115]
[1764088311038,0.20722,87221.0,87220.0,0.49705]
[1764088311346,0.3608,87226.0,87219.0,0.51351]
[1764088311347,0.3608,87226.0,87225.0,0.49705]
[1764088311643,0.77524,87234.0,87233.0,0.49705]
[1764088312039,0.7867099,87234.0,87233.0,0.49705]
[1764088312536,0.41444,87225.0,87224.0,0.2559]
[1764088312736,0.2186916,87221.0,87220.0,0.67853]
[1764088312935,0.0114713,87224.0,87220.0,0.18148]
[1764088313135,0.0114709,87227.0,87226.0,0.49705]
[1764088313738,0.0114709,87227.0,87220.0,0.18148]
[1764088313739,0.4259116,87221.0,87220.0,0.67853]
[1764088314933,0.7867099,87234.0,87233.0,0.49705]
[1764088315130,0.4259103,87231.0,87220.0,0.18148]
[1764088315339,0.4259116,87221.0,87220.0,0.18148]
[1764088315843,1.1659016,87221.0,87220.0,0.43738]
[1764088316244,1.1659016,87221.0,87220.0,0.18148]
[1764088316942,1.1659016,87221.0,87220.0,0.67853]
[1764088317136,0.73999,87221.0,87220.0,0.67853]
[1764088317335,0.73999,87221.0,87220.0,0.49705]
[1764088317839,0.38844,87221.0,87220.0,0.67853]
[1764088318035,0.1575976,87252.0,87234.0,0.49705]
[1764088318237,0.23813195,87245.0,87244.0,0.49705]
[1764088318440,1.95e-06,87245.0,87244.0,1.03933]
[1764088318640,0.3722659,87265.0,87264.0,0.49705]
[1764088318835,0.6006059,87265.0,87264.0,0.49705]
[1764088319346,0.3722658,87265.0,87264.0,0.49705]
[1764088319549,0.3608,87265.0,87264.0,0.49705]
[1764088319844,0.4725458,87265.0,87264.0,0.49705]
[1764088320241,0.46108,87265.0,87264.0,0.49705]
[1764088320545,0.4725451,87271.0,87270.0,0.22846]
[1764088320742,0.46108,87266.0,87265.0,0.22846]
[1764088320942,0.00017195,87273.0,87265.0,0.46064]
[1764088321148,0.0114655,87268.0,87267.0,0.46064]
[1764088321341,0.46108,87267.0,87266.0,0.04113913]
[1764088321650,0.00017195,87273.0,87266.0,0.50177913]
[1764088321944,0.47271675,87273.0,87272.0,0.22846]
[1764088322937,0.0114652,87270.0,87269.0,0.3608]
[1764088323139,0.0114658,87265.0,87264.0,0.04113913]
[1764088323343,0.3608,87272.0,87264.0,0.46064]
[1764088323543,0.2398057,87266.0,87265.0,0.46064]
[1764088323842,0.4725462,87262.0,87261.0,0.04113913]
[1764088324050,0.4725462,87262.0,87261.0,0.22846]
[1764088324548,0.46108,87261.0,87260.0,0.3608]
[1764088324944,0.0114662,87263.0,87262.0,0.46064]
[1764088325144,0.2398062,87263.0,87262.0,0.46064]
[1764088325541,0.4725462,87263.0,87262.0,0.46064]
[1764088325741,0.4725462,87263.0,87249.0,0.04113913]
[1764088325742,0.46108,87257.0,87249.0,0.04113913]
[1764088325943,0.46108,87237.0,87236.0,0.04113913]
[1764088326144,0.4725503,87231.0,87230.0,0.49332274]
[1764088326345,0.46108,87231.0,87230.0,0.49332274]
[1764088326646,0.46108,87231.0,87230.0,0.14844]
[1764088327241,0.22834,87229.0,87228.0,0.59298]
[1764088327446,0.22834,87229.0,87228.0,0.82144]
[1764088327947,0.01164135,87239.0,87229.0,0.0114706]
[1764088328144,0.00017195,87239.0,87229.0,0.11642274]
[1764088328341,0.0114704,87230.0,87229.0,0.11642274]
[1764088328644,0.22851195,87239.0,87238.0,0.46064]
[1764088328841,0.2398101,87233.0,87232.0,0.46064]
[1764088329043,0.6163304,87230.0,87229.0,0.11642274]
[1764088329248,0.46108,87229.0,87228.0,0.3608]
[1764088332156,0.4683214,87223.0,87222.0,0.00017195]
[1764088333348,0.8291214,87223.0,87222.0,5e-08]
[1764088333648,0.8291214,87223.0,87204.0,9.99e-05]
[1764088333649,0.59525,87186.0,87185.0,0.3608]
[1764088333849,0.59525,87186.0,87185.0,0.59661]
[1764088334043,0.0114755,87192.0,87185.0,0.83436]
[1764088334247,0.23796,87192.0,87191.0,0.47356]
[1764088334451,0.37636,87197.0,87196.0,0.47356]
[1764088334754,0.2380599,87197.0,87196.0,0.47356]
[1764088335056,0.6068247,87197.0,87196.0,0.47356]
[1764088335358,0.6068247,87197.0,87187.0,0.11642274]
[1764088335658,0.6068247,87197.0,87193.0,0.47356]
[1764088335659,0.4683252,87194.0,87193.0,0.47356]
[1764088335852,0.45685,87194.0,87193.0,0.47356]
[1764088336048,0.4683252,87194.0,87193.0,0.47356]
[1764088336250,0.45685,87194.0,87193.0,0.47356]
[1764088336845,0.23796,87194.0,87193.0,0.83436]
[1764088337546,0.5953499,87197.0,87196.0,0.47356]
[1764088337954,0.45685,87194.0,87193.0,0.59661]
[1764088338150,0.45685,87194.0,87193.0,0.3608]
[1764088339047,0.23796,87194.0,87193.0,0.83436]
[1764088339260,0.45685,87194.0,87193.0,0.3608]
[1764088340560,0.6067262,87186.0,87185.0,0.3608]
[1764088340759,0.59525,87186.0,87185.0,0.83436]
[1764088340953,0.6067262,87186.0,87185.0,0.83436]
[1764088341647,0.59525,87186.0,87185.0,0.83436]
[1764088341852,0.2494353,87193.0,87192.0,0.47356]
[1764088342257,0.4683253,87193.0,87192.0,0.47356]
[1764088342561,0.45685,87193.0,87192.0,0.47356]
[1764088342761,0.3764599,87197.0,87196.0,0.47356]
[1764088342950,9.99e-05,87197.0,87196.0,0.47356]
[1764088344056,0.2380599,87197.0,87196.0,0.47356]
[1764088344254,9.99e-05,87197.0,87196.0,0.83436]
[1764088344461,9.99e-05,87197.0,87196.0,0.9324306]
[1764088345761,9.99e-05,87197.0,87196.0,0.83436]
[1764088346561,9.99e-05,87197.0,87196.0,0.87549913]
[1764088347459,9.99e-05,87197.0,87196.0,0.83436]
[1764088347858,0.5953499,87197.0,87196.0,0.83436]
[1764088348159,0.2380599,87197.0,87196.0,0.83436]
[1764088348355,0.4569499,87197.0,87196.0,0.83436]
[1764088348557,0.2380599,87197.0,87196.0,0.83436]
[1764088348752,0.5953499,87197.0,87196.0,0.83436]
[1764088348951,0.5953499,87197.0,87196.0,0.3608]
[1764088349358,9.99e-05,87197.0,87196.0,0.83436]
[1764088351054,0.5953499,87197.0,87196.0,0.83436]
[1764088351456,9.99e-05,87197.0,87196.0,0.83436]
[1764088353371,9.99e-05,87197.0,87196.0,0.9324306]
[1764088355372,0.33684182,87214.0,87199.0,0.47356]
[1764088355572,0.0114737,87205.0,87204.0,0.95078274]
[1764088355771,0.0114737,87205.0,87204.0,0.83436]
[1764088356070,0.23796,87208.0,87207.0,0.47356]
[1764088356575,0.45685,87208.0,87207.0,0.47356]
[1764088356975,0.00017205,87216.0,87215.0,0.47356]
[1764088357171,0.00017205,87216.0,87215.0,0.65512]
[1764088358068,0.23813205,87216.0,87215.0,0.65512]
[1764088358259,0.45702205,87216.0,87215.0,0.65512]
[1764088358464,0.45702205,87216.0,87215.0,0.69625962]
[1764088358975,0.00017205,87216.0,87215.0,0.69625962]
[1764088359172,0.00017205,87216.0,87215.0,0.65512]
[1764088359876,0.00017205,87216.0,87215.0,0.66678435]
[1764088360264,0.00017205,87216.0,87215.0,0.65512]
[1764088360471,0.3608,87247.0,87235.0,0.23775]
[1764088360472,0.0114698,87236.0,87235.0,0.23775]
[1764088360671,0.4683198,87236.0,87235.0,0.47356]
[1764088360871,0.45685,87236.0,87235.0,0.47356]
[1764088361073,0.47618,87246.0,87245.0,0.24222]
[1764088361269,0.4876483,87246.0,87245.0,0.49044]
[1764088361765,0.4876483,87246.0,87245.0,0.24222]
[1764088361971,0.4876492,87239.0,87238.0,0.67204]
[1764088362273,0.23407,87239.0,87238.0,0.67204]
[1764088362466,0.23407,87239.0,87238.0,0.42982]
[1764088362670,0.2455386,87245.0,87244.0,0.49044]
[1764088362970,0.00017194,87254.0,87253.0,0.49044]
[1764088363474,0.50158,87290.0,87280.0,0.49044]
[1764088363678,0.0114635,87283.0,87282.0,0.24822]
[1764088363866,0.0114635,87283.0,87282.0,0.49044]
[1764088364374,0.4876435,87283.0,87282.0,0.49044]
[1764088364581,0.4876435,87283.0,87282.0,0.24222]
[1764088364781,0.47618,87282.0,87281.0,0.18172]
[1764088364982,0.2455345,87275.0,87274.0,0.85141194]
[1764088365280,0.50158,87290.0,87278.0,0.49044]
[1764088365281,0.23407,87279.0,87278.0,0.49044]
[1764088366285,0.011464,87279.0,87278.0,0.49044]
[1764088366577,0.0114635,87283.0,87282.0,0.49044]
[1764088366974,0.0114639,87280.0,87274.0,0.36097194]
[1764088367174,0.0114639,87280.0,87279.0,0.49044]
[1764088368579,0.59487,87290.0,87289.0,0.49044]
[1764088369079,0.3608,87290.0,87289.0,0.49044]
[1764088369286,0.59487,87290.0,87289.0,0.49044]
[1764088369485,0.83698,87290.0,87289.0,0.49044]
[1764088369783,0.47618,87287.0,87286.0,0.18164]
[1764088370181,0.23407,87287.0,87286.0,0.67208]
[1764088370578,0.47618,87287.0,87286.0,0.67208]
[1764088371079,0.23407,87287.0,87286.0,0.67208]
[1764088371288,0.47618,87287.0,87286.0,0.67208]
[1764088372079,0.23407,87287.0,87286.0,0.67208]
[1764088372388,0.47618,87287.0,87286.0,0.67208]
[1764088373187,0.3608,87290.0,87289.0,0.49044]
[1764088373377,0.97776,87290.0,87289.0,0.49044]
[1764088374573,0.00017194,87291.0,87290.0,0.49044]
[1764088374881,0.47635194,87291.0,87290.0,0.49044]
[1764088375082,0.47618,87287.0,87286.0,0.18164]
[1764088375378,0.23407,87287.0,87286.0,0.67208]
[1764088375686,0.47618,87287.0,87286.0,0.67208]
[1764088377381,0.47618,87287.0,87286.0,0.18164]
[1764088377880,0.47618,87287.0,87286.0,0.67208]
[1764088378386,0.47618,87287.0,87286.0,0.18164]
[1764088379583,0.47618,87287.0,87286.0,0.3843]
[1764088380090,0.47618,87287.0,87286.0,0.18164]
[1764088380282,0.47618,87287.0,87286.0,0.58827]
[1764088380489,0.0114626,87290.0,87289.0,0.40663]
[1764088380886,0.00017194,87291.0,87289.0,0.40663]
[1764088381091,0.01163434,87291.0,87290.0,0.40663]
[1764088381292,0.00017194,87291.0,87290.0,0.40663]
[1764088381795,0.55667194,87291.0,87290.0,0.40663]
[1764088382381,0.00017194,87291.0,87290.0,0.4180925]
[1764088382697,0.7851,87325.0,87324.0,0.40663]
[1764088382881,0.4243,87325.0,87324.0,0.40663]
[1764088383083,0.4243,87325.0,87317.0,0.37654037]
[1764088383084,0.7851,87325.0,87317.0,0.18144]
[1764088383292,0.21821,87305.0,87304.0,0.76743]
[1764088383484,0.4357608,87304.0,87303.0,0.18144]
[1764088383680,0.4243,87304.0,87303.0,0.58807]
[1764088383893,0.21821,87304.0,87303.0,0.58807]
[1764088384091,0.92876,87310.0,87309.0,0.40663]
[1764088384296,0.4243,87304.0,87303.0,0.18144]
[1764088384899,0.4243,87304.0,87303.0,0.3841]
[1764088385301,0.4243,87304.0,87303.0,0.18144]
[1764088385501,0.4243,87304.0,87303.0,0.3841]
[1764088385700,0.4243,87304.0,87303.0,0.58807]
[1764088385908,0.00017122,87312.0,87311.0,0.40663]
[1764088387307,0.42447122,87312.0,87311.0,0.20266]
[1764088387505,0.42447122,87312.0,87311.0,0.40663]
[1764088388210,0.4243,87307.0,87306.0,0.3608]
[1764088388410,0.4243,87307.0,87306.0,0.94883]
[1764088389010,0.21838122,87312.0,87311.0,0.40663]
[1764088389510,0.42447122,87312.0,87311.0,0.40663]
[1764088390512,0.43593092,87312.0,87311.0,0.40663]
[1764088390810,0.42447122,87312.0,87311.0,0.40663]
[1764088391202,0.00017122,87312.0,87311.0,0.40663]
[1764088393906,0.22659082,87312.0,87311.0,0.40663]
[1764088394106,0.4272603,87307.0,87306.0,0.74567]
[1764088394312,0.0114611,87301.0,87297.0,0.3608]
[1764088394610,0.4272611,87301.0,87300.0,0.20347]
[1764088394806,0.4158,87299.0,87298.0,0.18136]
[1764088397312,0.12533,87300.0,87283.0,0.04101786]
[1764088397313,0.4158,87296.0,87283.0,0.04101786]
[1764088397512,0.4158,87296.0,87284.0,0.18136]
[1764088397721,0.4158,87296.0,87288.0,0.3608]
[1764088398518,0.4168,87296.0,87288.0,0.3608]
[1764088398821,0.4178,87296.0,87288.0,0.3608]
[1764088399024,0.4178,87296.0,87284.0,0.18136]
[1764088399610,0.4178,87296.0,87295.0,0.20364184]
[1764088399814,0.4178,87296.0,87295.0,0.00017184]
[1764088401617,0.002,87296.0,87295.0,0.42337184]
[1764088401810,0.002,87296.0,87295.0,0.96553184]
[1764088402117,0.002,87296.0,87288.0,0.3722626]
[1764088402118,0.4158,87279.0,87278.0,0.24448786]
[1764088402309,0.4158,87279.0,87278.0,0.4232]
[1764088402618,0.4158,87279.0,87278.0,0.20347]
[1764088402811,0.4272641,87278.0,87277.0,0.3608]
[1764088403012,0.25477109,87278.0,87277.0,0.784]
[1764088403323,0.26623519,87278.0,87277.0,0.784]
[1764088404419,0.26623519,87278.0,87277.0,0.4232]
[1764088405411,0.0114641,87278.0,87277.0,0.4232]
[1764088405715,0.00017184,87286.0,87285.0,0.4232]
[1764088405919,0.21513184,87286.0,87285.0,0.4232]
[1764088406416,0.21496,87275.0,87274.0,0.46425418]
[1764088406615,0.12533,87280.0,87269.0,0.06169863]
[1764088406616,0.54113,87280.0,87279.0,0.4232]
[1764088406816,0.4272632,87285.0,87284.0,0.21973]
[1764088407011,0.4272632,87285.0,87284.0,0.4232]
[1764088407419,0.4272643,87277.0,87276.0,0.4232]
[1764088407621,0.4272643,87277.0,87274.0,0.3618]
[1764088407622,0.4158,87275.0,87274.0,0.3618]
[1764088408111,0.4272651,87270.0,87269.0,0.42337184]
[1764088408715,0.4272651,87270.0,87269.0,0.00017184]
[1764088409725,0.4272651,87270.0,87251.0,0.0114675]
[1764088409726,0.4158,87251.0,87250.0,0.04105418]
[1764088410018,0.4272685,87244.0,87243.0,0.04105418]
[1764088410224,0.3608,87251.0,87238.0,0.42232679]
[1764088410225,0.4272692,87239.0,87238.0,0.40185418]
[1764088410419,0.21496,87238.0,87237.0,0.1814]
[1764088410723,0.4158,87228.0,87227.0,0.3608]
[1764088411717,0.4158,87224.0,87223.0,0.1814]
[1764088412925,0.4148,87224.0,87223.0,0.1814]
[1764088413620,0.4148,87224.0,87223.0,0.1824]
[1764088413927,0.4148,87224.0,87223.0,0.001]
[1764088417224,0.0114641,87278.0,87223.0,0.785]
[1764088417225,0.3608,87248.0,87223.0,0.785]
[1764088417431,0.3608,87248.0,87230.0,0.784]
[1764088417432,0.21496,87231.0,87230.0,0.784]
[1764088418023,0.4158,87231.0,87230.0,0.784]
[1764088418221,0.4158,87231.0,87230.0,0.20347]
[1764088418422,0.2264312,87224.0,87223.0,0.4242]
[1764088418622,0.4272712,87224.0,87223.0,0.4242]
[1764088418829,0.4272712,87224.0,87223.0,0.001]
[1764088419130,0.4272712,87224.0,87222.0,0.3608]
[1764088419131,0.4158,87223.0,87222.0,0.3608]
[1764088419324,0.4158,87220.0,87219.0,0.0002816]
[1764088419521,0.4158,87220.0,87207.0,0.18148]
[1764088419522,0.5526033,87208.0,87207.0,0.18148]
[1764088419724,0.427275,87195.0,87194.0,0.3608]
[1764088420430,0.0114762,87186.0,87184.0,0.54228]
[1764088420631,0.4158,87185.0,87184.0,0.54228]
[1764088421427,0.4158,87185.0,87184.0,0.94006]
[1764088421933,0.0114756,87191.0,87184.0,0.94006]
[1764088422149,0.01164725,87194.0,87184.0,0.94006]
[1764088422327,0.01164725,87194.0,87193.0,0.39778]
[1764088422635,0.00017205,87194.0,87193.0,0.39778]
[1764088423038,0.39648205,87194.0,87193.0,0.39778]
[1764088423240,0.19390205,87194.0,87193.0,0.39778]
[1764088423537,0.39648205,87194.0,87193.0,0.20026]
[1764088423737,0.00017205,87194.0,87184.0,0.73738037]
[1764088423939,0.19373,87185.0,87184.0,0.73738037]
[1764088424131,0.19373,87185.0,87184.0,0.54228]
[1764088424333,0.19373,87185.0,87184.0,0.94006]
[1764088424526,0.011476,87188.0,87187.0,0.39778]
[1764088425149,0.407786,87188.0,87187.0,0.39778]
[1764088427237,0.4077863,87185.0,87184.0,0.94006]
[1764088427433,0.0114763,87185.0,87184.0,0.94006]
[1764088427644,0.0114755,87191.0,87184.0,0.54228]
[1764088427841,0.00017205,87194.0,87193.0,0.39778]
[1764088427842,0.01164725,87194.0,87193.0,0.39778]
[1764088428043,0.40795725,87194.0,87193.0,0.39778]
[1764088428541,0.4077861,87187.0,87186.0,0.39778]
[1764088428734,0.39631,87185.0,87184.0,0.18148]
[1764088429047,0.39631,87185.0,87184.0,0.57926]
[1764088429434,0.19373,87185.0,87184.0,0.57926]
[1764088430239,0.0114761,87187.0,87186.0,0.39778]
[1764088431348,0.2052061,87187.0,87186.0,0.39778]
[1764088431838,0.0114751,87194.0,87193.0,0.39778]
[1764088432045,0.0114748,87197.0,87194.0,0.39778]
[1764088432242,0.0114748,87197.0,87194.0,0.57934]
[1764088432846,0.00017205,87203.0,87194.0,0.5908151]
[1764088433145,0.0114748,87197.0,87194.0,0.57934]
[1764088434237,0.39640686,87195.0,87194.0,0.57934]
[1764088434843,0.39640686,87195.0,87194.0,0.18156]
[1764088435338,0.39631,87185.0,87184.0,0.39536037]
[1764088435538,0.39631,87185.0,87184.0,0.39778]
[1764088435742,0.4077863,87185.0,87184.0,0.39778]
[1764088435940,0.4077863,87185.0,87182.0,0.54236]
[1764088435941,0.39631,87183.0,87182.0,0.54236]
[1764088436140,0.39631,87183.0,87182.0,0.18156]
[1764088436543,0.4077874,87177.0,87176.0,0.20043205]
[1764088436840,0.40789706,87177.0,87176.0,0.20043205]
[1764088437241,0.40789706,87177.0,87176.0,0.00017205]
[1764088438252,0.56611706,87177.0,87176.0,0.39795205]
[1764088438450,0.76869706,87177.0,87176.0,0.39795205]
[1764088439443,0.74113532,87177.0,87176.0,0.00017205]
[1764088439643,0.75261272,87177.0,87176.0,0.00017205]
[1764088440346,0.3448,87162.0,87161.0,0.04105418]
[1764088440549,0.3562803,87155.0,87150.0,0.15779363]
[1764088440854,0.3562803,87155.0,87148.0,0.18169587]
[1764088441544,0.3562811,87149.0,87148.0,0.00013587]
[1764088442450,0.3448,87147.0,87146.0,0.00017205]
[1764088443450,0.3448,87147.0,87146.0,0.17498205]
[1764088443836,0.17607,87147.0,87146.0,0.35931205]
[1764088444037,0.01156278,87149.0,87148.0,0.35914]
[1764088444755,0.35636278,87149.0,87148.0,0.35914]
[1764088445050,0.3448,87147.0,87146.0,0.17498205]
[1764088445254,0.3448,87147.0,87146.0,0.35931205]
[1764088446349,0.01156278,87149.0,87148.0,0.35914]
[1764088447662,0.35636278,87149.0,87148.0,0.35914]
[1764088447853,0.3448,87147.0,87146.0,0.17498205]
[1764088448241,0.01156278,87149.0,87148.0,0.35914]
[1764088448440,8.168e-05,87149.0,87148.0,0.35914]
[1764088449153,0.17624205,87163.0,87146.0,0.18181205]
[1764088449354,0.0114808,87151.0,87150.0,0.35914]
[1764088450156,0.0115743,87151.0,87150.0,0.35914]